Cogmind - Beta 13 @@@ ROGUE MODE // 2024.07.06 @ 21:12:29 Player: Minty Result: Destroyed by D-53 Grenadier with Mini Grenade Launcher Performance ------------- Evolutions (0) 0 Regions Visited (2) 400 Robots Destroyed (11) 55 Value Destroyed (187) 187 Prototype IDs (2) 40 Alien Tech Used (0) 0 Bonus (-35) -35 TOTAL SCORE: 647 Bonus ------- Friendly Fire -35 Cogmind --------- Core Integrity 0/250 Matter 282/300 Energy 100/100 System Corruption 0% Temperature Cool (0) Movement Core (100) Ox1 Location -10/Mines Parts ------- > --- POWER (1) -------- (None) > --- PROPULSION (2) --- (None) > --- UTILITY (2) ------ Small Storage Unit Targeting Computer > --- WEAPON (2) ------- (None) > --- INVENTORY (8) ---- Light Ion Engine Light Treads Light Treads Compact Wheel Compact Wheel Large Battery (200) Light Cannon Grenade Launcher Peak State ------------ > --- POWER ------------ Light Ion Engine > --- PROPULSION ------- Aluminum Leg Aluminum Leg > --- UTILITY ---------- Small Storage Unit Targeting Computer > --- WEAPON ----------- Small Laser Light Assault Rifle > --- INVENTORY -------- Light Ion Engine Light Treads Light Treads Compact Wheel Compact Wheel Medium Laser Grenade Launcher [Rating: 7] Favorites ----------- Power Light Ion Engine Engine Light Ion Engine Propulsion Aluminum Leg Leg Aluminum Leg Utility Small Storage Unit Storage Small Storage Unit Processor Targeting Computer Weapon Light Assault Rifle Energy Gun Small Laser Ballistic Gun Light Assault Rifle Ballistic Cannon Light Cannon Launcher Grenade Launcher Build | -11 -10 -10 ------- Run | Yrd Mat Min Slots Evolved . | . . . Power . | . . . Propulsion . | . . . Utility . | . . . Weapon . | . . . Parts Attached 6 | . 5 1 Power . | . . . Engine . | . . . Core . | . . . Reactor . | . . . Propulsion . | . . . Treads . | . . . Leg . | . . . Wheel . | . . . Hover . | . . . Flight . | . . . Utility 1 | . 1 . Device . | . . . Storage . | . . . Processor 1 | . 1 . Hackware . | . . . Protection . | . . . Artifact . | . . . Weapon 5 | . 4 1 Energy Gun 1 | . 1 . Energy Cannon . | . . . Ballistic Gun 1 | . 1 . Ballistic Cannon 1 | . 1 . Launcher 2 | . 1 1 Special Weapon . | . . . Impact Weapon . | . . . Slashing Weapon . | . . . Piercing Weapon . | . . . Special Melee Weapon . | . . . Unidentified Prototypes . | . . . Parts Lost 4 | . . 4 Power 1 | . . 1 Propulsion 2 | . . 2 Utility . | . . . Weapon 1 | . . 1 Highest Loss Streak 4 | . . 4 To Critical Strikes . | . . . Average Slot Usage (%) 91 | . 89 94 Engine 13 | . 14 13 Leg 27 | . 28 26 Storage 14 | . 14 14 Processor 7 | . 4 14 Energy Gun 8 | . 12 . Ballistic Gun 12 | . 12 13 Ballistic Cannon 5 | . 2 12 Naked Turns . | . . . Heaviest Build 12 | 10 12 12 Greatest Support 20 | 20 20 20 Greatest Overweight (x) 1 | . . 1 Average Overweight (x) . | . . . Largest Inventory Capacity 8 | . 8 8 Average Capacity 8 | . 8 8 Most Carried 8 | . 8 8 Average Carried 7 | . 7 7 Final Capacity 8 | 8 8 8 Final Carried 8 | 6 8 8 Class Distribution -------------------- 100% | Mutant Dominant Class ---------------- Mutant | -10/Materials Mutant | -10/Mines Resources | -11 -10 -10 ----------- Run | Yrd Mat Min Matter Collected 308 | 200 78 30 Remotely . | . . . Salvage Created 360 | . 293 67 Parts 21 | . 16 5 Haulers Intercepted . | . . . Recyclers Shooed . | . . . Parts Field Recycled . | . . . Retrieved Matter . | . . . Parts Self-Destructed . | . . . Prevented . | . . . Kills | -11 -10 -10 ------- Run | Yrd Mat Min Combat Hostiles Destroyed 16 | . 6 10 Guns 4 | . 3 1 Cannons 4 | . 2 2 AOE 8 | . 1 7 Classes Destroyed 4 | . 3 1 Recycler 2 | . 2 . Swarmer 6 | . 3 3 Grunt 3 | . 3 . Assembled 7 | . . 7 Best Kill Streak 7 | . 4 7 Combat Bots Only 7 | . 3 7 Max Kills in Single Turn 3 | . 2 3 Gunslinging . | . . . Exploded 3 | . 1 3 Melee . | . . . Uniques/NPCs Destroyed . | . . . Combat | -11 -10 -10 -------- Run | Yrd Mat Min Hostile Shots Fired 57 | . 39 18 Missed 23 | . 15 8 Damage Taken 705 | . 252 453 Core 256 | . 45 211 Absorbed by Shields . | . . . Core Remaining (%) 100 | 100 . . Volleys Fired 32 | . 27 5 Largest 2 | . 2 2 Hottest 90 | . 90 55 Shots Fired 64 | . 54 10 Gun 53 | . 48 5 Cannon 7 | . 5 2 Launcher 4 | . 1 3 Special . | . . . Kinetic 30 | . 23 7 Thermal 30 | . 30 . Explosive 4 | . 1 3 Electromagnetic . | . . . Robot Hit Streak 11 | . 11 2 Robot Miss Streak 5 | . 5 1 Penetration Max . | . . . Secondary Targets . | . . . Shots Hit Robots 36 | . 31 5 Core Hits 34 | . 16 18 Critical Kills 1 | . 1 . Critical Parts Destroyed 1 | . 1 . Critical Strikes 2 | . 2 . Destroy 2 | . 2 . Melee Attacks . | . . . Impact . | . . . Slashing . | . . . Piercing . | . . . Sneak Attacks . | . . . Combat Hostiles . | . . . Follow-up Attacks . | . . . Damage Inflicted 857 | . 413 444 Guns 312 | . 304 8 Cannons 76 | . 37 39 Explosions 463 | . 66 397 Melee . | . . . Ramming 6 | . 6 . Kinetic 169 | . 122 47 Thermal 219 | . 219 . Explosive 463 | . 66 397 Electromagnetic . | . . . Impact . | . . . Slashing . | . . . Piercing . | . . . Highest Corruption . | . . . Average Corruption . | . . . Corruption Purged . | . . . Corruption Blocked . | . . . Overload Shots . | . . . Overflow Damage 1 | . . 1 Projectiles . | . . . Explosions 1 | . . 1 Melee . | . . . Knockbacks . | . . . Impact . | . . . Kinetic . | . . . Secondary . | . . . Self-Inflicted Damage 32 | . . 32 Shots 1 | . . 1 Rammed . | . . . Targets Rammed 2 | . 2 . Kicked 2 | . 2 . Crushed . | . . . Highest Temperature 338 | . 338 29 Average Temperature 102 | . 111 14 Received Heat Transfer 149 | . 120 29 Effects 1 | . 1 . Short Circuit 1 | . 1 . Siege Activations . | . . . Robots Corrupted . | . . . Combat Hostiles . | . . . Parts Fried . | . . . Impact Corruptions . | . . . Robots Melted . | . . . Combat Hostiles . | . . . Parts Melted . | . . . Heat Transferred 548 | . 548 . Parts Sabotaged . | . . . Parts Stolen . | . . . Parts Stripped . | . . . Power Chain Reactions . | . . . Alert | -11 -10 -10 ------- Run | Yrd Mat Min Peak Influence 173 | . 171 173 Initial 66 | . . 66 Average 66 | . 52 93 Maximum Alert Level . | . . . Low Security (%) 100 | . 100 100 Level 1 . | . . . Level 2 . | . . . Level 3 . | . . . Level 4 . | . . . Level 5 . | . . . High Security . | . . . Max Security . | . . . Squads Dispatched . | . . . Investigation . | . . . Extermination . | . . . Reinforcement . | . . . Assault . | . . . Garrison . | . . . Intercept . | . . . Searches Triggered . | . . . Construction Impeded . | . . . Haulers Reinforced . | . . . Active Scanning Responses . | . . . Cargo Convoy Interrupts . | . . . Stealth | -11 -10 -10 --------- Run | Yrd Mat Min Distress Signals 3 | . 3 . Communications Jammed . | . . . Distress Signals . | . . . Times Spotted 29 | . 9 20 Peak Tracking Total 14 | . 4 14 Tactical Retreats . | . . . Traps | -11 -10 -10 ------- Run | Yrd Mat Min Traps Triggered . | . . . Indirectly . | . . . Trap Hack Attempts . | . . . Triggered . | . . . Disarmed . | . . . Reprogrammed 6 | . 6 . Reused . | . . . Traps Extracted . | . . . Installed . | . . . Triggered . | . . . Machines | -11 -10 -10 ---------- Run | Yrd Mat Min Machines Disabled . | . . . Max in Single Turn . | . . . Machines Repaired . | . . . Machines Dismantled . | . . . Machines Sabotaged . | . . . Overloaded Fab Kills . | . . . Hacking | -11 -10 -10 --------- Run | Yrd Mat Min Machines Accessed 2 | . 2 . Terminals 2 | . 2 . Fabricators . | . . . Repair Stations . | . . . Recycling Units . | . . . Scanalyzers . | . . . Garrison Access . | . . . Total Hacks 8 | . 8 . Successful 3 | . 3 . Failed 5 | . 5 . Catastrophic . | . . . Database Lockouts . | . . . Manual 2 | . 2 . Terminals 8 | . 8 . Fabricators . | . . . Repair Stations . | . . . Recycling Units . | . . . Scanalyzers . | . . . Garrison Access . | . . . Terminal Hacks 3 | . 3 . Prototype ID Bank 1 | . 1 . Reprogram Traps 1 | . 1 . Patrol Status 1 | . 1 . Fabricator Hacks . | . . . Repair Station Hacks . | . . . Recycling Unit Hacks . | . . . Scanalyzer . | . . . Garrison Access Hacks . | . . . Unauthorized Hacks . | . . . Terminals . | . . . Fabricators . | . . . Repair Stations . | . . . Recycling Units . | . . . Scanalyzers . | . . . Garrison Access . | . . . Data Cores Recovered . | . . . Used . | . . . Hacking Detections 2 | . 2 . Full Trace Events 1 | . 1 . Feedback Events . | . . . Feedback Blocked . | . . . Robot Schematics Acquired . | . . . Robots Built . | . . . Authchips . | . . . Time . | . . . Total Robot Build Rating . | . . . Part Schematics Acquired . | . . . Parts Built . | . . . Authchips . | . . . Time . | . . . Total Part Build Rating . | . . . Parts Repaired . | . . . Time . | . . . Parts Recycled . | . . . Recycled Matter . | . . . Retrieved Matter . | . . . Retrieved Components . | . . . Parts Scanalyzed . | . . . Part Schematics Acquired . | . . . Parts Damaged . | . . . Bothacking | -11 -10 -10 ------------ Run | Yrd Mat Min Used RIF Installer . | . . . Robots Hacked . | . . . Non-combat . | . . . Combat . | . . . Robot Hacks Applied . | . . . Relay Couplers Released . | . . . Fabnet Peak Effective % . | . . . Robots Rewired . | . . . Allies Hacked . | . . . Hacks Repelled . | . . . Allies | -11 -10 -10 -------- Run | Yrd Mat Min Total Allies 3 | . . 3 Largest Group 3 | . . 3 Highest-Rated Group 40 | . . 40 Highest-Rated Ally 16 | . . 16 Total Orders . | . . . Ally Attacks 14 | . . 14 Total Damage 96 | . . 96 Kills 2 | . . 2 Allies Corrupted . | . . . Allies Melted . | . . . Intel | -11 -10 -10 ------- Run | Yrd Mat Min Robot Analysis Total . | . . . Derelict Logs Recovered . | . . . Drone Launches . | . . . Drone Recoveries . | . . . Exploration | -11 -10 -10 ------------- Run | Yrd Mat Min Turns Passed 421 | . 283 138 Spaces Moved 260 | 1 158 101 Core 4 | . . 4 Treads . | . . . Legs 256 | 1 158 97 Wheels . | . . . Hover . | . . . Flight . | . . . Fastest Speed 100 | 120 120 100 Average Speed 119 | 120 120 119 Slowest Speed 120 | 120 120 120 Overloaded Moves . | . . . Propulsion Burnouts . | . . . Robots Hopped . | . . . Cave-ins Triggered . | . . . Exploration Rate (%) 22 | 2 33 32 Regions Visited 2 Branch Regions 1 Pre-discovered Areas . | . . . Known Exits Taken . | . . . Unknown Exits Taken 2 | 1 1 . Scrap Searched 1 | . . 1 Spaces Dug . | . . . Terrain Destroyed 20 | . . 20 Melee . | . . . Projectile . | . . . AOE 20 | . . 20 Terrain Rammed . | . . . Walls Destroyed . | . . . Machines Disabled . | . . . Actions | -11 -10 -10 --------- Run | Yrd Mat Min Total 309 | . 199 110 Wait 3 | . 3 . Move 258 | . 157 101 Hop . | . . . Pick Up 4 | . 3 1 Fast Attach 2 | . 2 . Attach . | . . . Detach . | . . . Swap 4 | . 3 1 Drop 4 | . 2 2 Fire 32 | . 27 5 Melee . | . . . Ram . | . . . Kick 2 | . 2 . Crush . | . . . Escape Stasis . | . . . Rewire . | . . . Trap . | . . . Miscellaneous . | . . . Route ------- -11/Scrapyard -10/Materials -10/Mines History --------- Turn | Location | Event 1 | -11/Scrapyard | Discovered new exit (range 0) 1 | -11/Scrapyard | Entered Materials 189 | -10/Materials | Discovered new exit (range 8) 284 | -10/Materials | Entered Mines 287 | -10/Mines | Assisted by bots powering up and referring to "LRC-V3" 316 | -10/Mines | Build established: Mutant 361 | -10/Mines | YI-UF0 nonchalantly dropped a Grenade Launcher on the ground 401 | -10/Mines | Assembled infested the area 421 | -10/Mines | Core integrity fell below 50% 422 | -10/Mines | Destroyed by D-53 Grenadier with Mini Grenade Launcher Last Messages --------------- 00414_ Aluminum Leg destroyed. 00414_ Trooper 1a destroyed. 00415_ HV Slug penetrates as-49696. 00415_ as-49696 destroyed. 00415_ HV Slug penetrates Earth. 00415_ as-94051 destroyed. 00415_ Lgt. Ion Engine destroyed. 00415_ Destroyed Lgt. Ion Engine. 00415_ as-55995 destroyed. 00416_ Mercenary 1a destroyed. 00418_ as-93532 powers down. 00418_ as-86678 powers down. 00418_ as-73423 powers down. 00418_ Aluminum Leg destroyed. 00418_ Dropped Lgt. Assault Rifle. 00418_ Grenade Launcher destroyed. 00420_ Trooper 1b destroyed. 00420_ as-73423 destroyed. 00420_ Acquired 10 matter. 00421_ HV Slug penetrates as-93532. Map ----- +----------------------------------------------------+ | ??????????????????????# #### ##?????????????? | | ??????????????????????# #?????######?????????? | | ??????????????????????# #????## ##????????? | | ????????????????????### #???## #????????? | | ????????????????????# ##### #?????????? | | ??????????# [ #### ! #??????????? | | ?????????# % % #???????????? | | ????????# % = #### #???????????? | | ???????# #### #?## #???????????? | | ???????? ##????# #### #???????????? | | ???????? ????????# ###?# #???????????? | | ????????????????????# #???# #???????????? | | ???????????????????## #??## ##???????????? | | ???????????????????? #?## ###????????????? | | ?????????????????#?### ### ##??????????????? | | ?????????????????# ?## ##???????????????? | | ?????????????????# ##d ##???????????????? | | ?????????????????# %d ????????????????? | | ?????????????????# # ##???????????????? | | ???????????????????# ##??????????????? | | ???????????????????# ##?????????????? | | ???????????????????# [ #?????????????? | | ???????????????????## #?????????????? | | ????????????????????## ## #???????????? | | ????????????????????# #????????????? | | ?????????????????????# @ ##????????????? | | ?????????????????????# ##?????????????? | | ?????????????????????## # #??????????????? | | ??????????????????????###a % #??????????????? | | ????????????????????????% a #??????????????? | | ???????????????????????? ##??????????????? | | ???????????????????????? ???????????????? | | ??????????????????????? ??????????????? | | ??????????????????????? ?????????????? | | ??????????????????????? ##### ?????????????? | | ??????????????????????? #?????##????????????? | | ??????????????????????<##????????????????????? | | ??????????????????????#??????????????????????? | | ?????????????????????????????????????????????? | | ?????????????????????????????????????????????? | | ?????????????????????????????????????????????? | | | | | | | | | | | | | | | | | | | +----------------------------------------------------+ Best States ------------- Heat Dissipation 25 Energy Generation 10 Energy Capacity 125 Matter Stores 300 Matter Capacity 300 Sight Range 16 Terrain Scan Density 10 Evasion (%) 55 Targeting Accuracy 5 Item Schematics ----------------- None Robot Schematics ------------------ None Fabricated ------------ Nothing Alien Tech Used ----------------- None Achievements -------------- None Challenges ------------ None Game ------ Seed WardroneSubatomicSaw Manual? 0 Play Time 00:05:12 Cumulative 786.0 hours Start 2024.07.06 @ 19:56:18 End 2024.07.06 @ 21:12:29 Sessions 3 Manual Loads 0 Difficulty Rogue Special Mode None Game No. 904 Rogue 626 Adventurer 124 Explorer 154 Win Type - Total 31 Types 25/0/4/1/0/0/0/1/0 Lore% 84 Gallery% 92 Achievement% 77 Wizard Run 0 Options --------- Layout 0 ASCII 1 Keyboard 1 Movement Numpad Keybinds 0 Fullscreen 2 Font 18/Smallcaps Map View 76x50 Zoom Use 0% Tactical HUD 1 Map Filters NONE Filters NONE Steam 1 RUN: 2da93f89-47eb-4474-bc3f-69c6d9a52a2f